Workbook

Sheet Oppsummert budsjett alt 1 (hidden)
A1: Oppsummert budsjett til styret
A2: Institutt for …..
A4: Hovedtiltak | C4: Ordinær virksomhet | K4: Ekst. fin. | L4: All | M4: Periodisering ord. virksomhet
C5: Inntekter | D5: Utgifter | I5: Netto | J5: Avsatt | K5: virks. | L5: virks.
D6: Lønn | E6: Drift | F6: Utstyr | G6: Sum | H6: Andel | I6: avsatt | J6: i fjor | M6: 1. Tertial | N6: 2. Tertial | O6: 3. Tertial | P6: Sum
D7: Artsklasse 5 | E7: Artsklasse 6 | F7: Artsklasse 4 | G7: utgifter | H7: av total | I7: over +/undersk - | J7: over +/undersk - | K7: utg -/ innt + | L7: utg -/ innt +
A9: Fordelinger / overført fra i fjor | B9: 00 00 00 | C9: ='Egenfin. virksomhet'!#REF! ->  | D9: ='Egenfin. virksomhet'!#REF! ->  | E9: ='Egenfin. virksomhet'!#REF! ->  | F9: ='Egenfin. virksomhet'!#REF! ->  | G9: ='Egenfin. virksomhet'!#REF! ->  | H9: =G9/G$23 ->  | I9: ='Egenfin. virksomhet'!#REF! ->  | J9: ='Egenfin. virksomhet'!#REF! ->  | K9: ='Ekst.fin. virksomhet (4)'!E48 -> 100 | L9: =SUM(I9:K9) ->  | M9: ='Egenfin. virksomhet'!C9 ->  | N9: ='Egenfin. virksomhet'!D9 -> 0 | O9: ='Egenfin. virksomhet'!E9 -> 0 | P9: ='Egenfin. virksomhet'!F9 -> 
A10: Forskning | B10: 100000 | C10: ='Egenfin. virksomhet'!#REF! ->  | D10: ='Egenfin. virksomhet'!#REF! ->  | E10: ='Egenfin. virksomhet'!#REF! ->  | F10: ='Egenfin. virksomhet'!#REF! ->  | G10: ='Egenfin. virksomhet'!#REF! ->  | H10: =G10/G$23 ->  | I10: ='Egenfin. virksomhet'!#REF! ->  | J10: ='Egenfin. virksomhet'!#REF! ->  | K10: =-'Ekst.fin. virksomhet (4)'!G48 -> -51 | L10: =SUM(I10:K10) ->  | M10: ='Egenfin. virksomhet'!C25 -> 0 | N10: ='Egenfin. virksomhet'!D25 -> 0 | O10: ='Egenfin. virksomhet'!E25 -> 0 | P10: ='Egenfin. virksomhet'!F25 -> 0
A11: Forskerutdanning | B11: 400000 | C11: ='Egenfin. virksomhet'!#REF! ->  | D11: ='Egenfin. virksomhet'!#REF! ->  | E11: ='Egenfin. virksomhet'!#REF! ->  | F11: ='Egenfin. virksomhet'!#REF! ->  | G11: ='Egenfin. virksomhet'!#REF! ->  | I11: ='Egenfin. virksomhet'!#REF! ->  | J11: ='Egenfin. virksomhet'!#REF! ->  | K11: =-'Ekst.fin. virksomhet (4)'!H$48 -> -22 | M11: ='Egenfin. virksomhet'!C29 -> 0 | N11: ='Egenfin. virksomhet'!D29 -> 0 | O11: ='Egenfin. virksomhet'!E29 -> 0 | P11: ='Egenfin. virksomhet'!F29 -> 0
A12: Etter- og videreutdanning | B12: 500000 | C12: ='Egenfin. virksomhet'!#REF! ->  | D12: ='Egenfin. virksomhet'!#REF! ->  | E12: ='Egenfin. virksomhet'!#REF! ->  | F12: ='Egenfin. virksomhet'!#REF! ->  | G12: ='Egenfin. virksomhet'!#REF! ->  | I12: ='Egenfin. virksomhet'!#REF! ->  | J12: ='Egenfin. virksomhet'!#REF! ->  | K12: =-'Ekst.fin. virksomhet (4)'!I$48 -> -33 | M12: ='Egenfin. virksomhet'!C32 -> 0 | N12: ='Egenfin. virksomhet'!D32 -> 0 | O12: ='Egenfin. virksomhet'!E32 -> 0 | P12: ='Egenfin. virksomhet'!F32 -> 0
A13: Undervisning lavere grad | B13: 600000 | C13: ='Egenfin. virksomhet'!#REF! ->  | D13: ='Egenfin. virksomhet'!#REF! ->  | E13: ='Egenfin. virksomhet'!#REF! ->  | F13: ='Egenfin. virksomhet'!#REF! ->  | G13: ='Egenfin. virksomhet'!#REF! ->  | I13: ='Egenfin. virksomhet'!#REF! ->  | J13: ='Egenfin. virksomhet'!#REF! ->  | K13: =-'Ekst.fin. virksomhet (4)'!J$48 -> -44 | M13: ='Egenfin. virksomhet'!#REF! ->  | N13: ='Egenfin. virksomhet'!#REF! ->  | O13: ='Egenfin. virksomhet'!#REF! ->  | P13: ='Egenfin. virksomhet'!#REF! -> 
A14: Undervisning høyere grad | B14: 610000 | C14: ='Egenfin. virksomhet'!#REF! ->  | D14: ='Egenfin. virksomhet'!#REF! ->  | E14: ='Egenfin. virksomhet'!#REF! ->  | F14: ='Egenfin. virksomhet'!#REF! ->  | G14: ='Egenfin. virksomhet'!#REF! ->  | I14: ='Egenfin. virksomhet'!#REF! ->  | J14: ='Egenfin. virksomhet'!#REF! ->  | K14: =-'Ekst.fin. virksomhet (4)'!K$48 -> -55 | M14: ='Egenfin. virksomhet'!C36 -> 0 | N14: ='Egenfin. virksomhet'!D36 -> 0 | O14: ='Egenfin. virksomhet'!E36 -> 0 | P14: ='Egenfin. virksomhet'!F36 -> 0
A15: Undervisning profesjonsstudium | B15: 620000
A16: Undervisning annet | B16: 640000 | C16: ='Egenfin. virksomhet'!#REF! ->  | D16: ='Egenfin. virksomhet'!#REF! ->  | E16: ='Egenfin. virksomhet'!#REF! ->  | F16: ='Egenfin. virksomhet'!#REF! ->  | G16: ='Egenfin. virksomhet'!#REF! ->  | I16: ='Egenfin. virksomhet'!#REF! ->  | J16: ='Egenfin. virksomhet'!#REF! ->  | K16: =-'Ekst.fin. virksomhet (4)'!L$48 -> -66 | M16: ='Egenfin. virksomhet'!#REF! ->  | N16: ='Egenfin. virksomhet'!#REF! ->  | O16: ='Egenfin. virksomhet'!#REF! ->  | P16: ='Egenfin. virksomhet'!#REF! -> 
A17: Eksamen | B17: 690000 | C17: ='Egenfin. virksomhet'!#REF! ->  | D17: ='Egenfin. virksomhet'!#REF! ->  | E17: ='Egenfin. virksomhet'!#REF! ->  | F17: ='Egenfin. virksomhet'!#REF! ->  | G17: ='Egenfin. virksomhet'!#REF! ->  | I17: ='Egenfin. virksomhet'!#REF! ->  | J17: ='Egenfin. virksomhet'!#REF! ->  | K17: =-'Ekst.fin. virksomhet (4)'!M$48 -> -77 | M17: ='Egenfin. virksomhet'!#REF! ->  | N17: ='Egenfin. virksomhet'!#REF! ->  | O17: ='Egenfin. virksomhet'!#REF! ->  | P17: ='Egenfin. virksomhet'!#REF! -> 
A18: Formidling/ utadrettet virksomhet | B18: 700000 | C18: ='Egenfin. virksomhet'!#REF! ->  | D18: ='Egenfin. virksomhet'!#REF! ->  | E18: ='Egenfin. virksomhet'!#REF! ->  | F18: ='Egenfin. virksomhet'!#REF! ->  | G18: ='Egenfin. virksomhet'!#REF! ->  | I18: ='Egenfin. virksomhet'!#REF! ->  | J18: ='Egenfin. virksomhet'!#REF! ->  | K18: =-'Ekst.fin. virksomhet (4)'!N$48 -> -88 | M18: ='Egenfin. virksomhet'!C40 -> 0 | N18: ='Egenfin. virksomhet'!D40 -> 0 | O18: ='Egenfin. virksomhet'!E40 -> 0 | P18: ='Egenfin. virksomhet'!F40 -> 0
A19: Samlinger og dokumentasjon | B19: 730000 | C19: ='Egenfin. virksomhet'!#REF! ->  | D19: ='Egenfin. virksomhet'!#REF! ->  | E19: ='Egenfin. virksomhet'!#REF! ->  | F19: ='Egenfin. virksomhet'!#REF! ->  | G19: ='Egenfin. virksomhet'!#REF! ->  | I19: ='Egenfin. virksomhet'!#REF! ->  | J19: ='Egenfin. virksomhet'!#REF! ->  | K19: =-'Ekst.fin. virksomhet (4)'!O$48 -> -99 | M19: ='Egenfin. virksomhet'!#REF! ->  | N19: ='Egenfin. virksomhet'!#REF! ->  | O19: ='Egenfin. virksomhet'!#REF! ->  | P19: ='Egenfin. virksomhet'!#REF! -> 
A20: Annen faglig aktivitet | B20: 800000 | C20: ='Egenfin. virksomhet'!#REF! ->  | D20: ='Egenfin. virksomhet'!#REF! ->  | E20: ='Egenfin. virksomhet'!#REF! ->  | F20: ='Egenfin. virksomhet'!#REF! ->  | G20: ='Egenfin. virksomhet'!#REF! ->  | I20: ='Egenfin. virksomhet'!#REF! ->  | J20: ='Egenfin. virksomhet'!#REF! ->  | K20: =-'Ekst.fin. virksomhet (4)'!P$48 -> -110 | M20: ='Egenfin. virksomhet'!C50 ->  | N20: ='Egenfin. virksomhet'!D50 ->  | O20: ='Egenfin. virksomhet'!E50 ->  | P20: ='Egenfin. virksomhet'!F50 -> 
A21: Generell drift | B21: 900000 | C21: ='Egenfin. virksomhet'!#REF! ->  | D21: ='Egenfin. virksomhet'!#REF! ->  | E21: ='Egenfin. virksomhet'!#REF! ->  | F21: ='Egenfin. virksomhet'!#REF! ->  | G21: ='Egenfin. virksomhet'!#REF! ->  | I21: ='Egenfin. virksomhet'!#REF! ->  | J21: ='Egenfin. virksomhet'!#REF! ->  | K21: =-'Ekst.fin. virksomhet (4)'!Q$48 -> -121 | M21: ='Egenfin. virksomhet'!C55 -> 0 | N21: ='Egenfin. virksomhet'!D55 -> 0 | O21: ='Egenfin. virksomhet'!E55 -> 0 | P21: ='Egenfin. virksomhet'!F55 -> 0
A22: Administrasjon | B22: 990000 | C22: ='Egenfin. virksomhet'!#REF! ->  | D22: ='Egenfin. virksomhet'!#REF! ->  | E22: ='Egenfin. virksomhet'!#REF! ->  | F22: ='Egenfin. virksomhet'!#REF! ->  | G22: ='Egenfin. virksomhet'!#REF! ->  | I22: ='Egenfin. virksomhet'!#REF! ->  | J22: ='Egenfin. virksomhet'!#REF! ->  | K22: =-'Ekst.fin. virksomhet (4)'!R$48 -> -132 | M22: ='Egenfin. virksomhet'!C58 -> 0 | N22: ='Egenfin. virksomhet'!D58 -> 0 | O22: ='Egenfin. virksomhet'!E58 -> 0 | P22: ='Egenfin. virksomhet'!F58 -> 0
A23: Sum | C23: ='Egenfin. virksomhet'!#REF! ->  | D23: ='Egenfin. virksomhet'!#REF! ->  | E23: ='Egenfin. virksomhet'!#REF! ->  | F23: ='Egenfin. virksomhet'!#REF! ->  | G23: ='Egenfin. virksomhet'!#REF! ->  | I23: ='Egenfin. virksomhet'!#REF! ->  | J23: ='Egenfin. virksomhet'!C59 ->  | K23: =SUM(K8:K22) -> -798 | L23: =SUM(L8:L22) ->  | M23: ='Egenfin. virksomhet'!C59 ->  | N23: ='Egenfin. virksomhet'!D59 ->  | O23: ='Egenfin. virksomhet'!E59 ->  | P23: ='Egenfin. virksomhet'!F59 -> 
B24: Andel av total: | D24: =D23/$G$23 ->  | E24: =E23/$G$23 ->  | F24: =F23/$G$23 ->  | G24: =G23/$G$23 -> 

Sheet Oppsummert budsjett alt 2 (hidden)
A1: Oppsummert hovedbudsjett til styret
C3: Hoved- | D3: Inntekter | G3: Utgifter | K3: Netto | L3: Perioder
C4: tiltak | D4: Overf/fordeling | E4: Andre innt. | F4: Sum | G4: Lønn | H4: Drift | I4: Utstyr | J4: Sum | K4: avsatt | L4: 1. Tertial | M4: 2. Tertial | N4: 3. Tertial | O4: Sum
D5: Art 3199? | E5: Artsklasse 3 | F5: inntekter | G5: Artsklasse 5 | H5: Artsklasse 6 | I5: Artsklasse 4 | J5: utgifter | K5: oversk -/undersk +
A6: Ordinær virksomhet
B7: Fordelinger / overført fra i fjor | C7: 00 00 00 | D7: ='Egenfin. virksomhet'!#REF! ->  | E7: ='Egenfin. virksomhet'!#REF! ->  | F7: ='Egenfin. virksomhet'!#REF! ->  | G7: ='Egenfin. virksomhet'!#REF! ->  | H7: ='Egenfin. virksomhet'!#REF! ->  | I7: ='Egenfin. virksomhet'!#REF! ->  | J7: ='Egenfin. virksomhet'!#REF! ->  | K7: ='Egenfin. virksomhet'!#REF! ->  | L7: ='Egenfin. virksomhet'!C9 ->  | M7: ='Egenfin. virksomhet'!D9 -> 0 | N7: ='Egenfin. virksomhet'!E9 -> 0 | O7: ='Egenfin. virksomhet'!F9 -> 
B8: Forskning | C8: 100000 | D8: ='Egenfin. virksomhet'!#REF! ->  | E8: ='Egenfin. virksomhet'!#REF! ->  | F8: ='Egenfin. virksomhet'!#REF! ->  | G8: ='Egenfin. virksomhet'!#REF! ->  | H8: ='Egenfin. virksomhet'!#REF! ->  | I8: ='Egenfin. virksomhet'!#REF! ->  | J8: ='Egenfin. virksomhet'!#REF! ->  | K8: ='Egenfin. virksomhet'!#REF! ->  | L8: ='Egenfin. virksomhet'!C25 -> 0 | M8: ='Egenfin. virksomhet'!D25 -> 0 | N8: ='Egenfin. virksomhet'!E25 -> 0 | O8: ='Egenfin. virksomhet'!F25 -> 0
B9: Forskerutdanning | C9: 400000 | D9: ='Egenfin. virksomhet'!#REF! ->  | E9: ='Egenfin. virksomhet'!#REF! ->  | F9: ='Egenfin. virksomhet'!#REF! ->  | G9: ='Egenfin. virksomhet'!#REF! ->  | H9: ='Egenfin. virksomhet'!#REF! ->  | I9: ='Egenfin. virksomhet'!#REF! ->  | J9: ='Egenfin. virksomhet'!#REF! ->  | K9: ='Egenfin. virksomhet'!#REF! ->  | L9: ='Egenfin. virksomhet'!C29 -> 0 | M9: ='Egenfin. virksomhet'!D29 -> 0 | N9: ='Egenfin. virksomhet'!E29 -> 0 | O9: ='Egenfin. virksomhet'!F29 -> 0
B10: Etter- og videreutdanning | C10: 500000 | D10: ='Egenfin. virksomhet'!#REF! ->  | E10: ='Egenfin. virksomhet'!#REF! ->  | F10: ='Egenfin. virksomhet'!#REF! ->  | G10: ='Egenfin. virksomhet'!#REF! ->  | H10: ='Egenfin. virksomhet'!#REF! ->  | I10: ='Egenfin. virksomhet'!#REF! ->  | J10: ='Egenfin. virksomhet'!#REF! ->  | K10: ='Egenfin. virksomhet'!#REF! ->  | L10: ='Egenfin. virksomhet'!C32 -> 0 | M10: ='Egenfin. virksomhet'!D32 -> 0 | N10: ='Egenfin. virksomhet'!E32 -> 0 | O10: ='Egenfin. virksomhet'!F32 -> 0
B11: Undervisning lavere grad | C11: 600000 | D11: ='Egenfin. virksomhet'!#REF! ->  | E11: ='Egenfin. virksomhet'!#REF! ->  | F11: ='Egenfin. virksomhet'!#REF! ->  | G11: ='Egenfin. virksomhet'!#REF! ->  | H11: ='Egenfin. virksomhet'!#REF! ->  | I11: ='Egenfin. virksomhet'!#REF! ->  | J11: ='Egenfin. virksomhet'!#REF! ->  | K11: ='Egenfin. virksomhet'!#REF! ->  | L11: ='Egenfin. virksomhet'!#REF! ->  | M11: ='Egenfin. virksomhet'!#REF! ->  | N11: ='Egenfin. virksomhet'!#REF! ->  | O11: ='Egenfin. virksomhet'!#REF! -> 
B12: Undervisning høyere grad | C12: 610000 | D12: ='Egenfin. virksomhet'!#REF! ->  | E12: ='Egenfin. virksomhet'!#REF! ->  | F12: ='Egenfin. virksomhet'!#REF! ->  | G12: ='Egenfin. virksomhet'!#REF! ->  | H12: ='Egenfin. virksomhet'!#REF! ->  | I12: ='Egenfin. virksomhet'!#REF! ->  | J12: ='Egenfin. virksomhet'!#REF! ->  | K12: ='Egenfin. virksomhet'!#REF! ->  | L12: ='Egenfin. virksomhet'!C36 -> 0 | M12: ='Egenfin. virksomhet'!D36 -> 0 | N12: ='Egenfin. virksomhet'!E36 -> 0 | O12: ='Egenfin. virksomhet'!F36 -> 0
B13: Undervisning profesjonsstudium | C13: 620000
B14: Undervisning annet | C14: 640000 | D14: ='Egenfin. virksomhet'!#REF! ->  | E14: ='Egenfin. virksomhet'!#REF! ->  | F14: ='Egenfin. virksomhet'!#REF! ->  | G14: ='Egenfin. virksomhet'!#REF! ->  | H14: ='Egenfin. virksomhet'!#REF! ->  | I14: ='Egenfin. virksomhet'!#REF! ->  | J14: ='Egenfin. virksomhet'!#REF! ->  | K14: ='Egenfin. virksomhet'!#REF! ->  | L14: ='Egenfin. virksomhet'!#REF! ->  | M14: ='Egenfin. virksomhet'!#REF! ->  | N14: ='Egenfin. virksomhet'!#REF! ->  | O14: ='Egenfin. virksomhet'!#REF! -> 
B15: Eksamen | C15: 690000 | D15: ='Egenfin. virksomhet'!#REF! ->  | E15: ='Egenfin. virksomhet'!#REF! ->  | F15: ='Egenfin. virksomhet'!#REF! ->  | G15: ='Egenfin. virksomhet'!#REF! ->  | H15: ='Egenfin. virksomhet'!#REF! ->  | I15: ='Egenfin. virksomhet'!#REF! ->  | J15: ='Egenfin. virksomhet'!#REF! ->  | K15: ='Egenfin. virksomhet'!#REF! ->  | L15: ='Egenfin. virksomhet'!#REF! ->  | M15: ='Egenfin. virksomhet'!#REF! ->  | N15: ='Egenfin. virksomhet'!#REF! ->  | O15: ='Egenfin. virksomhet'!#REF! -> 
B16: Formidling/ utadrettet virksomhet | C16: 700000 | D16: ='Egenfin. virksomhet'!#REF! ->  | E16: ='Egenfin. virksomhet'!#REF! ->  | F16: ='Egenfin. virksomhet'!#REF! ->  | G16: ='Egenfin. virksomhet'!#REF! ->  | H16: ='Egenfin. virksomhet'!#REF! ->  | I16: ='Egenfin. virksomhet'!#REF! ->  | J16: ='Egenfin. virksomhet'!#REF! ->  | K16: ='Egenfin. virksomhet'!#REF! ->  | L16: ='Egenfin. virksomhet'!C40 -> 0 | M16: ='Egenfin. virksomhet'!D40 -> 0 | N16: ='Egenfin. virksomhet'!E40 -> 0 | O16: ='Egenfin. virksomhet'!F40 -> 0
B17: Samlinger og dokumentasjon | C17: 730000 | D17: ='Egenfin. virksomhet'!#REF! ->  | E17: ='Egenfin. virksomhet'!#REF! ->  | F17: ='Egenfin. virksomhet'!#REF! ->  | G17: ='Egenfin. virksomhet'!#REF! ->  | H17: ='Egenfin. virksomhet'!#REF! ->  | I17: ='Egenfin. virksomhet'!#REF! ->  | J17: ='Egenfin. virksomhet'!#REF! ->  | K17: ='Egenfin. virksomhet'!#REF! ->  | L17: ='Egenfin. virksomhet'!#REF! ->  | M17: ='Egenfin. virksomhet'!#REF! ->  | N17: ='Egenfin. virksomhet'!#REF! ->  | O17: ='Egenfin. virksomhet'!#REF! -> 
B18: Annen faglig aktivitet | C18: 800000 | D18: ='Egenfin. virksomhet'!#REF! ->  | E18: ='Egenfin. virksomhet'!#REF! ->  | F18: ='Egenfin. virksomhet'!#REF! ->  | G18: ='Egenfin. virksomhet'!#REF! ->  | H18: ='Egenfin. virksomhet'!#REF! ->  | I18: ='Egenfin. virksomhet'!#REF! ->  | J18: ='Egenfin. virksomhet'!#REF! ->  | K18: ='Egenfin. virksomhet'!#REF! ->  | L18: ='Egenfin. virksomhet'!C50 ->  | M18: ='Egenfin. virksomhet'!D50 ->  | N18: ='Egenfin. virksomhet'!E50 ->  | O18: ='Egenfin. virksomhet'!F50 -> 
B19: Generell drift | C19: 900000 | D19: ='Egenfin. virksomhet'!#REF! ->  | E19: ='Egenfin. virksomhet'!#REF! ->  | F19: ='Egenfin. virksomhet'!#REF! ->  | G19: ='Egenfin. virksomhet'!#REF! ->  | H19: ='Egenfin. virksomhet'!#REF! ->  | I19: ='Egenfin. virksomhet'!#REF! ->  | J19: ='Egenfin. virksomhet'!#REF! ->  | K19: ='Egenfin. virksomhet'!#REF! ->  | L19: ='Egenfin. virksomhet'!C55 -> 0 | M19: ='Egenfin. virksomhet'!D55 -> 0 | N19: ='Egenfin. virksomhet'!E55 -> 0 | O19: ='Egenfin. virksomhet'!F55 -> 0
B20: Administrasjon | C20: 990000 | D20: ='Egenfin. virksomhet'!#REF! ->  | E20: ='Egenfin. virksomhet'!#REF! ->  | F20: ='Egenfin. virksomhet'!#REF! ->  | G20: ='Egenfin. virksomhet'!#REF! ->  | H20: ='Egenfin. virksomhet'!#REF! ->  | I20: ='Egenfin. virksomhet'!#REF! ->  | J20: ='Egenfin. virksomhet'!#REF! ->  | K20: ='Egenfin. virksomhet'!#REF! ->  | L20: ='Egenfin. virksomhet'!C58 -> 0 | M20: ='Egenfin. virksomhet'!D58 -> 0 | N20: ='Egenfin. virksomhet'!E58 -> 0 | O20: ='Egenfin. virksomhet'!F58 -> 0
A21: Sum ordinær virksomhet | D21: ='Egenfin. virksomhet'!#REF! ->  | E21: ='Egenfin. virksomhet'!#REF! ->  | F21: ='Egenfin. virksomhet'!#REF! ->  | G21: ='Egenfin. virksomhet'!#REF! ->  | H21: ='Egenfin. virksomhet'!#REF! ->  | I21: ='Egenfin. virksomhet'!#REF! ->  | J21: ='Egenfin. virksomhet'!#REF! ->  | K21: ='Egenfin. virksomhet'!#REF! ->  | L21: ='Egenfin. virksomhet'!C59 ->  | M21: ='Egenfin. virksomhet'!D59 ->  | N21: ='Egenfin. virksomhet'!E59 ->  | O21: ='Egenfin. virksomhet'!F59 -> 
A23: Sum eksternt finansiert virksomhet | D23: ='Egenfin. virksomhet'!#REF! ->  | E23: ='Egenfin. virksomhet'!#REF! ->  | F23: ='Egenfin. virksomhet'!#REF! ->  | G23: ='Egenfin. virksomhet'!#REF! ->  | H23: ='Egenfin. virksomhet'!#REF! ->  | I23: ='Egenfin. virksomhet'!#REF! ->  | J23: ='Egenfin. virksomhet'!#REF! ->  | K23: ='Egenfin. virksomhet'!#REF! ->  | L23: ='Egenfin. virksomhet'!C71 -> 29000 | M23: ='Egenfin. virksomhet'!D71 -> -136000 | N23: ='Egenfin. virksomhet'!E71 -> 72000 | O23: ='Egenfin. virksomhet'!F71 -> -35000
A25: Sum all virksomhet | D25: ='Egenfin. virksomhet'!#REF! ->  | E25: ='Egenfin. virksomhet'!#REF! ->  | F25: ='Egenfin. virksomhet'!#REF! ->  | G25: ='Egenfin. virksomhet'!#REF! ->  | H25: ='Egenfin. virksomhet'!#REF! ->  | I25: ='Egenfin. virksomhet'!#REF! ->  | J25: ='Egenfin. virksomhet'!#REF! ->  | K25: ='Egenfin. virksomhet'!#REF! ->  | L25: ='Egenfin. virksomhet'!C73 ->  | M25: ='Egenfin. virksomhet'!D73 ->  | N25: ='Egenfin. virksomhet'!E73 ->  | O25: ='Egenfin. virksomhet'!F73 -> 

Sheet Egenfin. virksomhet
A1: Budsjett egenfinansiert virksomhet 2009
C2: Periodisering (utgift -, inntekt+) | G2: Tiltakskode | H2: Inntekter | I2: Kostnader | J2: Delegert | K2: Noter
C3: 1. Tertial | D3: 2. Tertial | E3: 3. Tertial | F3: Sum | J3: BDM
A4: Inntekter
A5: Inntekter/fordelinger/overført fra i fjor | G5: 00 00 00
B6: Overført fra i fjor* | C6: =#REF! ->  | F6: =SUM(C6:E6) ->  | G6: 00 00 00 | H6: -500000
B7: Bevilgning fra UiO (ordinær aktivitet) | C7: =#REF! ->  | F7: =SUM(C7:E7) ->  | G7: 00 00 10 | H7: -9385701
B8: Dekningsbidraginntekter | G8: 00 00 00 | H8: -9700000
A9: Sum fordeling / overført | C9: =SUM(C5:C7) ->  | D9: =SUM(D5:D7) -> 0 | E9: =SUM(E5:E7) -> 0 | F9: =SUM(F5:F7) ->  | H9: =SUM(H6:H8) -> -19585701
A10: Kostnader
A11: Forskning | G11: 10 00 00
B12: Forskningssatsning (FUU) | F12: =SUM(C12:E12) -> 0 | G12: 10 00 03 | I12: 150000 | J12: dir/forskled | K12: Bevilgninger via FUU til forskning.
B13: Forskningssatsning (forskningsadm støtte) | F13: =SUM(C13:E13) -> 0 | G13: 10 00 03 | I13: 228596 | J13: dir/forskled | K13: Lønn til assistent. Forskningsadm støtte.
B14: Menneskerettigheter og utvikling (JUS) | G14: 10 00 38 | H14: 0 | I14: 25000 | J14: BAA/MLd
B15: Over-/underdekning prosjekter | F15: =SUM(C15:E15) -> 0 | G15: 12 00 00 | I15: 375000 | J15: dir/K-sjef
B16: Andreassen, Bård Anders (perm 9 mnd.) | G16: 35 21 26 | I16: 3750 | J16: dir/BAA
B17: Butenschøen, Nils (perm) | C17: Andreas Føllestad | G17: 35 14 77 | I17: 0
B18: Føllestad, Andreas | G18: 35 05 61 | I18: 15000 | J18: dir/AF
B19: Helgesen, Jan | G19: 35 00 69 | I19: 15000 | J19: dir/JH
B20: Høstmælingen, Njål | G20: 41 07 57 | I20: 15000 | J20: dir/NH
B21: Lindholm, Tore | G21: 35 01 20 | I21: 15000 | J21: dir/TL
B22: Lundberg, Maria | G22: 35 21 27 | I22: 15000 | J22: dir/Mlu
B23: Nystuen, Gro | G23: 35 24 42 | I23: 15000 | J23: dir/GN
B24: Tronvoll, Kjetil | F24: =SUM(C24:E24) -> 0 | G24: 39 00 92 | I24: 15000 | J24: dir/KT
A25: Sum forskning | C25: =SUM(C11:C24) -> 0 | D25: =SUM(D11:D24) -> 0 | E25: =SUM(E11:E24) -> 0 | F25: =SUM(F11:F24) -> 0 | I25: =SUM(I12:I24) -> 887346
A26: Forskerutdanning | G26: 40 00 00
B27: Stipendiater (lønn) | F27: =SUM(C27:E27) -> 0 | G27: 41 00 00 | H27: 0 | I27: 1893878 | J27: dir/k-sjef
B28: Stipendiater (drift) | F28: =SUM(C28:E28) -> 0 | G28: 41 00 65 | I28: 45000 | J28: stip.
A29: Sum forskerutdanning | C29: =SUM(C26:C28) -> 0 | D29: =SUM(D26:D28) -> 0 | E29: =SUM(E26:E28) -> 0 | F29: =SUM(F26:F28) -> 0 | I29: =SUM(I27:I28) -> 1938878
A30: Etter- og videreutdanning | G30: 50 00 00
B31: NI etter- og videreutdanning | F31: =SUM(C31:E31) -> 0 | G31: 50 00 00 | H31: -150000 | I31: 150000 | J31: NI-leder/GF/MS
A32: Sum etter- og videreutdanning | C32: =SUM(C30:C31) -> 0 | D32: =SUM(D30:D31) -> 0 | E32: =SUM(E30:E31) -> 0 | F32: =SUM(F30:F31) -> 0 | I32: =SUM(I31:I31) -> 150000
A33: Undervisning/Eksamen høyere grad | G33: 60 00 00
B34: Mastergrad (lønn masterleder) | G34: 61 20 00 | H34: 0 | I34: 50000 | J34: k-sjef/MA-leder
B35: Mastergrad (gjesteforelesere etc) | G35: 61 20 00 | H35: 0 | I35: 20000 | J35: k-sjef/MA-leder
A36: Sum undervisning høyere grad | C36: =SUM(C33:C35) -> 0 | D36: =SUM(D33:D35) -> 0 | E36: =SUM(E33:E35) -> 0 | F36: =SUM(F33:F35) -> 0 | I36: =SUM(I34:I35) -> 70000
A37: Formidling/ utadrettet virksomhet | G37: 70 00 00
B38: Tidsskriftet NTMR (lønn) | F38: =SUM(C38:E38) -> 0 | G38: 70 00 13 | I38: 214090 | J38: dir/k-sjef
B39: Tidsskriftet NTMR (drift) | H39: -80000 | I39: 95000 | J39: k-sjef/red
A40: Sum formidling | C40: =SUM(C37:C38) -> 0 | D40: =SUM(D37:D38) -> 0 | E40: =SUM(E37:E38) -> 0 | F40: =SUM(F37:F38) -> 0 | I40: =SUM(I38:I39) -> 309090
A41: Annen faglig aktivitet | G41: 80 00 00
B42: Bibliotek (drift) | F42: =SUM(C42:E42) -> 0 | G42: 80 00 04 | I42: 350000 | J42: k-sjef/BJH | K42: Kutt i kostn/innt pga ny budsjettmodell?
B43: Bibliotek (lønn) | G43: 80 00 04 | I43: 852733 | J43: dir/k-sjef
B44: Nasjonal institusjonstiltak | G44: 80 00 40 | I44: 325000 | J44: NI-leder/EK
B45: Informasjonstiltak | G45: 84 00 00 | I45: 100000 | J45: k-sjef/CBA | K45: Skilt info og MR-årbok
B46: Informasjonstiltak (produksjon MR-årbok) | G46: 84 00 00 | I46: 160000 | J46: k-sjef/CBA | K46: Skilt info og MR-årbok
B47: Fastlønn vitenskapelige ansatte | C47: =#REF!/3 ->  | D47: =#REF!/3 ->  | E47: =#REF!/3 ->  | F47: =SUM(C47:E47) ->  | G47: 89 00 00 | I47: 4561082 | J47: dir/k-sjef
B48: Driftsmidler direktør | G48: 89 00 03 | H48: 0 | I48: 50000 | J48: dir
B49: Tjenestereiser senterledelse & -adm | G49: 89 00 10 | I49: 200000 | J49: dir/k-sjef
A50: Sum annen faglig aktivitet | C50: =SUM(C41:C47) ->  | D50: =SUM(D41:D47) ->  | E50: =SUM(E41:E47) ->  | F50: =SUM(F41:F47) ->  | I50: =SUM(I42:I49) -> 6598815
A51: Generell drift | G51: 90 00 00
B52: Generell drift | F52: =SUM(C52:E52) -> 0 | G52: 90 00 00 | I52: 2000000 | J52: dir/k-sjef
B53: IT-tiltak | G53: 90 10 00 | I53: 400000 | J53: k-sjef/IT-ansv
B54: Internhusleie UiO | F54: =SUM(C54:E54) -> 0 | G54: 90 40 00 | I54: 2927004 | J54: dir/k-sjef
A55: Sum generell drift | C55: =SUM(C51:C54) -> 0 | D55: =SUM(D51:D54) -> 0 | E55: =SUM(E51:E54) -> 0 | F55: =SUM(F51:F54) -> 0 | I55: =SUM(I52:I54) -> 5327004
A56: Administrasjon | G56: 99 00 00
B57: Fastlønn administrative stillinger | F57: =SUM(C57:E57) -> 0 | G57: 99 00 00 | I57: 4588730 | J57: dir/k-sjef
A58: Sum administrasjon lønn | C58: =SUM(C56:C57) -> 0 | D58: =SUM(D56:D57) -> 0 | E58: =SUM(E56:E57) -> 0 | F58: =SUM(F56:F57) -> 0 | H58: 0 | I58: =SUM(I57) -> 4588730
A59: Sum | C59: =C9+C25+C29+C32+C36+#REF!+#REF!+C40+#REF!+C50+C55+C58 ->  | D59: =D9+D25+D29+D32+D36+#REF!+#REF!+D40+#REF!+D50+D55+D58 ->  | E59: =E9+E25+E29+E32+E36+#REF!+#REF!+E40+#REF!+E50+E55+E58 ->  | F59: =F9+F25+F29+F32+F36+#REF!+#REF!+F40+#REF!+F50+F55+F58 ->  | H59: =SUM(H9+H39) -> -19665701 | I59: =SUM(I25+I29+I32+I36+I40+I50+I55+I58) -> 19869863
I60: =SUM(I25+I29+I33+I37+I41+I51+I56+I59) -> 
A61: Eksternt finansiert virksomhet (alternativt oppsett)
G62: Prosjekt- kode
A63: Prosjekt 1 | C63: =-35000+(16000*4) -> 29000 | D63: =-200000+(16000*4) -> -136000 | E63: 72000 | F63: =SUM(C63:E63) -> -35000 | G63: xxxxxx | H63: =SUM(#REF!) -> 
A64: Prosjekt 2 | F64: 0 | G64: xxxxxx | H64: =SUM(#REF!) ->  | I64: =SUM(#REF!) -> 
A65: Prosjekt 3 | F65: 0 | G65: xxxxxx | H65: =SUM(#REF!) ->  | I65: =SUM(#REF!) -> 
A66: Prosjekt 4 | F66: 0 | G66: xxxxxx | H66: =SUM(#REF!) ->  | I66: =SUM(#REF!) -> 
A67: Prosjekt 5 | F67: 0 | G67: xxxxxx | H67: =SUM(#REF!) ->  | I67: =SUM(#REF!) -> 
A68: Prosjekt 6 | F68: 0 | G68: xxxxxx | H68: =SUM(#REF!) ->  | I68: =SUM(#REF!) -> 
A69: Prosjekt 7 | F69: 0 | G69: xxxxxx | H69: =SUM(#REF!) ->  | I69: =SUM(#REF!) -> 
F70: 0 | H70: =SUM(#REF!) ->  | I70: =SUM(#REF!) -> 
C71: =SUM(C62:C70) -> 29000 | D71: =SUM(D62:D70) -> -136000 | E71: =SUM(E62:E70) -> 72000 | F71: =SUM(F62:F70) -> -35000 | H71: =SUM(H62:H70) -> 
I72: =SUM(I63:I71) -> 
C73: =C59+C71 ->  | D73: =D59+D71 ->  | E73: =E59+E71 ->  | F73: =F59+F71 ->  | H73: =H59+H71 -> 
A74: Balanse | I74: =H59+I59 -> 204162
B76: Noter:
A77: 1. | B77: Balanse 2009 skal gå med ca 500.000 i pluss pga pålegg om "frysing" av overskudd.
A78: 2. | B78: Avklare justering for pris- og lønnsvekst. Beregne 1 l.tr. Ekstra for alle ansatte?
A79: 3. | B79: Avklare økt pensjonskostnad. Anslag: økt kostnad 200.000. Salderes mot generell drift tiltak 900000.

Sheet Ekst.fin. virksomhet (4) (hidden)
A1: Budsjett eksternt finansiert virksomhet
A3: Institutt for …. | E3: Inntekter/ | F3: Utgifter, spesifisert på hovedtiltak
A4: Finansieringskilde, prosjektnavn | D4: Prosjekt- kode | E4: overføring | F4: Sum utgifter | G4: Forskning 100000 | H4: Forskerutdanning 400000 | I4: Etter- og videreutdanning 500000 | J4: Undervisning lavere grad 600000 | K4: Undervisning høyere grad 610000 | L4: Undervisning annet 640000 | M4: Eksamen 690000 | N4: Formidling/ utadrettet virksomhet 700000 | O4: Samlinger og dokumentasjon 730000 | P4: Annen faglig aktivitet 800000 | Q4: Generell drift 900000 | R4: Administrasjon 990000
A6: Norge offentlig (100000-299999)
B7: Norges forskningsråd (100000-199999)
C8: NFR-prosjekt 1 | E8: 100 | F8: =SUM(G8:R8) -> 78 | G8: 1 | H8: 2 | I8: 3 | J8: 4 | K8: 5 | L8: 6 | M8: 7 | N8: 8 | O8: 9 | P8: 10 | Q8: 11 | R8: 12
C9: NFR-prosjekt 2 | F9: =SUM(G9:R9) -> 0
B11: Sum NFR | E11: =SUM(E7:E10) -> 100 | F11: =SUM(F7:F10) -> 78 | G11: 1 | H11: 2 | I11: 3 | J11: 4 | K11: 5 | L11: 6 | M11: 7 | N11: 8 | O11: 9 | P11: 10 | Q11: 11 | R11: 12
B13: Norge offentlig ellers (200000-299999) | F13: =SUM(G13:R13) -> 0
C14: prosjekt 1 | D14: 2xxxxx | F14: =SUM(G14:R14) -> 780 | G14: 10 | H14: 20 | I14: 30 | J14: 40 | K14: 50 | L14: 60 | M14: 70 | N14: 80 | O14: 90 | P14: 100 | Q14: 110 | R14: 120
C15: prosjekt 2 | D15: 2xxxxx | F15: =SUM(G15:R15) -> 0
B17: Sum Norge offentlig ellers | E17: =SUM(E13:E16) -> 0 | F17: =SUM(F13:F16) -> 780 | G17: 10 | H17: 20 | I17: 30 | J17: 40 | K17: 50 | L17: 60 | M17: 70 | N17: 80 | O17: 90 | P17: 100 | Q17: 110 | R17: 120
A19: Sum Norge offentlig | E19: =E11+E17 -> 100 | F19: =F11+F17 -> 858 | G19: 11 | H19: 22 | I19: 33 | J19: 44 | K19: 55 | L19: 66 | M19: 77 | N19: 88 | O19: 99 | P19: 110 | Q19: 121 | R19: 132
A21: Norge halvoffentlig/halvprivat (300000-399999)
B22: prosjekt 1 | D22: 3xxxxx | F22: =SUM(G22:R22) -> 4 | G22: 4
B23: prosjekt 2 | D23: 3xxxxx | F23: =SUM(G23:R23) -> 0
F24: =SUM(G24:R24) -> 0
A25: Sum Norge halvoffentlig/halvprivat | E25: =SUM(E21:E24) -> 0 | F25: 4 | G25: 4 | H25: 0 | I25: 0 | J25: 0 | K25: 0 | L25: 0 | M25: 0 | N25: 0 | O25: 0 | P25: 0 | Q25: 0 | R25: 0
A29: Norge privat (400000-499999)
B30: prosjekt 1 | D30: 4xxxxx | F30: =SUM(G30:R30) -> 8 | G30: 8
B31: prosjekt 2 | D31: 4xxxxx | F31: =SUM(G31:R31) -> 0
F32: =SUM(G32:R32) -> 0
A33: Sum Norge privat | E33: =SUM(E29:E32) -> 0 | F33: 8 | G33: 8 | H33: 0 | I33: 0 | J33: 0 | K33: 0 | L33: 0 | M33: 0 | N33: 0 | O33: 0 | P33: 0 | Q33: 0 | R33: 0
A35: Ekstern uspesifisert (500000-599999)
B36: prosjekt 1 | D36: 5xxxxx | F36: =SUM(G36:R36) -> 12 | G36: 12
B37: prosjekt 2 | D37: 5xxxxx | F37: =SUM(G37:R37) -> 0
F38: =SUM(G38:R38) -> 0
A39: Sum Ekstern uspesifisert | E39: =SUM(E35:E38) -> 0 | F39: 12 | G39: 12 | H39: 0 | I39: 0 | J39: 0 | K39: 0 | L39: 0 | M39: 0 | N39: 0 | O39: 0 | P39: 0 | Q39: 0 | R39: 0
A41: Utland (600000-699999)
B42: prosjekt 1 | D42: 6xxxxx | F42: =SUM(G42:R42) -> 16 | G42: 16
B43: prosjekt 2 | D43: 6xxxxx | F43: =SUM(G43:R43) -> 0
F44: =SUM(G44:R44) -> 0
A45: Sum Utland | E45: =SUM(E41:E44) -> 0 | F45: 16 | G45: 16 | H45: 0 | I45: 0 | J45: 0 | K45: 0 | L45: 0 | M45: 0 | N45: 0 | O45: 0 | P45: 0 | Q45: 0 | R45: 0
A48: Sum Eksternt finansiert virksomhet | E48: =E19+E25+E33+E39+E45 -> 100 | F48: 898 | G48: 51 | H48: 22 | I48: 33 | J48: 44 | K48: 55 | L48: 66 | M48: 77 | N48: 88 | O48: 99 | P48: 110 | Q48: 121 | R48: 132
D50: Resultat: | E50: =E48-F48 -> -798 | F50: Andel: | G50: =G48/$F48 -> 0.05679287305 | H50: =H48/$F48 -> 0.02449888641 | I50: 0.03674832962 | J50: 0.04899777283 | K50: 0.06124721604 | L50: 0.07349665924 | M50: 0.08574610245 | N50: 0.09799554566 | O50: 0.1102449889 | P50: 0.1224944321 | Q50: 0.1347438753 | R50: 0.1469933185

Sheet Ekst.fin. virksomhet (2) (hidden)
A1: Budsjett eksternt finansiert virksomhet
A3: Institutt for …. | E3: Forskning (hovedtiltak 100000) | J3: Etter- og videreutdanning (hovedtiltak 500000) | O3: Andre hovedtiltak
D4: Prosjekt | F4: Utgifter | K4: Utgifter | P4: Utgifter
A5: Finansieringskilde, prosjektnavn | D5: kode | E5: Inntekter | F5: Invest | G5: Lønn | H5: Drift | I5: Sum | J5: Inntekter | K5: Invest | L5: Lønn | M5: Drift | N5: Sum | O5: Inntekter | P5: Invest | Q5: Lønn | R5: Drift | S5: Sum
A7: Norge offentlig (100000-299999)
B8: Norges forskningsråd (100000-199999)
C9: NFR-prosjekt 1 | E9: 100 | F9: =SUM(G9:S9) -> 78 | G9: 1 | H9: 2 | I9: 3 | J9: 4 | K9: 5 | L9: 6 | M9: 7 | N9: 8 | O9: 9 | P9: 10 | Q9: 11 | S9: 12
C10: NFR-prosjekt 2 | F10: =SUM(G10:S10) -> 0
B12: Sum NFR | E12: =SUM(E8:E11) -> 100 | F12: 78 | G12: 1 | H12: 2 | I12: 3 | J12: 4 | K12: 5 | L12: 6 | M12: 7 | N12: 8 | O12: 9 | P12: 10 | Q12: 11 | S12: 12
B14: Norge offentlig ellers (200000-299999) | F14: =SUM(G14:S14) -> 0
C15: prosjekt 1 | D15: 2xxxxx | F15: =SUM(G15:S15) -> 780 | G15: 10 | H15: 20 | I15: 30 | J15: 40 | K15: 50 | L15: 60 | M15: 70 | N15: 80 | O15: 90 | P15: 100 | Q15: 110 | S15: 120
C16: prosjekt 2 | D16: 2xxxxx | F16: =SUM(G16:S16) -> 0
B18: Sum Norge offentlig ellers | E18: =SUM(E14:E17) -> 0 | F18: 780 | G18: 10 | H18: 20 | I18: 30 | J18: 40 | K18: 50 | L18: 60 | M18: 70 | N18: 80 | O18: 90 | P18: 100 | Q18: 110 | S18: 120
A20: Sum Norge offentlig | E20: =E12+E18 -> 100 | F20: 858 | G20: 11 | H20: 22 | I20: 33 | J20: 44 | K20: 55 | L20: 66 | M20: 77 | N20: 88 | O20: 99 | P20: 110 | Q20: 121 | S20: 132
A22: Norge halvoffentlig/halvprivat (300000-399999)
B23: prosjekt 1 | D23: 3xxxxx | F23: =SUM(G23:S23) -> 4 | G23: 4
B24: prosjekt 2 | D24: 3xxxxx | F24: =SUM(G24:S24) -> 0
F25: =SUM(G25:S25) -> 0
A26: Sum Norge halvoffentlig/halvprivat | E26: =SUM(E22:E25) -> 0 | F26: 4 | G26: 4 | H26: 0 | I26: 0 | J26: 0 | K26: 0 | L26: 0 | M26: 0 | N26: 0 | O26: 0 | P26: 0 | Q26: 0 | S26: 0
A28: Norge privat (400000-499999)
B29: prosjekt 1 | D29: 4xxxxx | F29: =SUM(G29:S29) -> 8 | G29: 8
B30: prosjekt 2 | D30: 4xxxxx | F30: =SUM(G30:S30) -> 0
F31: =SUM(G31:S31) -> 0
A32: Sum Norge privat | E32: =SUM(E28:E31) -> 0 | F32: 8 | G32: 8 | H32: 0 | I32: 0 | J32: 0 | K32: 0 | L32: 0 | M32: 0 | N32: 0 | O32: 0 | P32: 0 | Q32: 0 | S32: 0
A34: Ekstern uspesifisert (500000-599999)
B35: prosjekt 1 | D35: 5xxxxx | F35: =SUM(G35:S35) -> 12 | G35: 12
B36: prosjekt 2 | D36: 5xxxxx | F36: =SUM(G36:S36) -> 0
F37: =SUM(G37:S37) -> 0
A38: Sum Ekstern uspesifisert | E38: =SUM(E34:E37) -> 0 | F38: 12 | G38: 12 | H38: 0 | I38: 0 | J38: 0 | K38: 0 | L38: 0 | M38: 0 | N38: 0 | O38: 0 | P38: 0 | Q38: 0 | S38: 0
A40: Utland (600000-699999)
B41: prosjekt 1 | D41: 6xxxxx | F41: =SUM(G41:S41) -> 16 | G41: 16
B42: prosjekt 2 | D42: 6xxxxx | F42: =SUM(G42:S42) -> 0
F43: =SUM(G43:S43) -> 0
A44: Sum Utland | E44: =SUM(E40:E43) -> 0 | F44: 16 | G44: 16 | H44: 0 | I44: 0 | J44: 0 | K44: 0 | L44: 0 | M44: 0 | N44: 0 | O44: 0 | P44: 0 | Q44: 0 | S44: 0
A47: Sum Eksternt finansiert virksomhet | E47: =E20+E26+E32+E38+E44 -> 100 | F47: 898 | G47: 51 | H47: 22 | I47: 33 | J47: 44 | K47: 55 | L47: 66 | M47: 77 | N47: 88 | O47: 99 | P47: 110 | Q47: 121 | S47: 132
D49: Resultat: | E49: =E47-F47 -> -798 | F49: Andel: | G49: =G47/$F47 -> 0.05679287305 | H49: 0.02449888641 | I49: 0.03674832962 | J49: 0.04899777283 | K49: 0.06124721604 | L49: 0.07349665924 | M49: 0.08574610245 | N49: 0.09799554566 | O49: 0.1102449889 | P49: 0.1224944321 | Q49: 0.1347438753 | S49: 0.1469933185

Sheet Overført fra 2008
A1: Øremerkete overføringer fra 2008
B3: Tiltakskode | C3: overføringen | D3: delgering
A18: Sum

Sheet JUS-bevilgning
A1: Bevilgninger fra JUS 2008
A3: Skisse til overføringer 2008
B5: 2007 | C5: 2008
A6: Drift | B6: 544120 | C6: 511473
A7: Int husleie | B7: 2459000 | C7: 2459000
A8: Vitenskapelige | B8: 2356341 | C8: 2356341
A9: Adm | B9: =6036885.23202042-3500000 -> 2536885.232 | C9: 2536885
A11: Sum | B11: =SUM(B6:B9) -> 7896346.232 | C11: =SUM(C6+C7+C8+C9) -> 7863699
A16: Instituttlederpakker | B16: 30000 | C16: 30000
A17: Forskergruppeleder | B17: 25000 | C17: 25000
A18: Internasjonale master | B18: 70000 | C18: 70000
A19: Startpakker (ME) | B19: 32050 | C19: 32050
A20: Føllesdal | B20: 502601 | C20: 0
A21: Stipendiat lt.49 | C21: 462720
A22: Stiumuleringsmidler | B22: =297000-50000 -> 247000
A24: Sum | B24: =SUM(B16:B22) -> 906651 | C24: =SUM(C16:C23) -> 619770
A25: Totalt | B25: =SUM(B11+B24) -> 8802997.232 | C25: =SUM(C11+C24) -> 8483469

Sheet tiltak-mal
A1: Tittel
B2: Tiltaks- | C2: Sted- | D2: Arts- | E2: Inntekter (artsklasse 3) | H2: Utgifter | L2: Netto | M2: Periodisering (utgift -, inntekt+) | Q2: Avsatt
B3: kode | C3: kode | D3: kode | E3: Overført/ | F3: Øvrige | G3: Sum | H3: Lønn | I3: Drift | J3: Utstyr | K3: Sum | L3: avsatt | M3: 1. Tertial | N3: 2. Tertial | O3: 3. Tertial | P3: Sum | Q3: i fjor
E4: tildelinger | F4: =SUM(I45) -> 0 | G4: inntekter | H4: Artsklasse 5 | I4: Artsklasse 6 | J4: Artsklasse 4 | K4: utgifter | L4: over+/undersk -
G5: =SUM(E5:F5) -> 0
G6: =SUM(E6:F6) -> 0
G7: =SUM(E7:F7) -> 0 | P7: =SUM(M7:O7) -> 0
G8: 0 | P8: =SUM(M8:O8) -> 0
G9: 0
G10: 0
G11: 0
G12: 0
G13: 0
G14: 0
G15: 0
G16: 0
G17: 0
G18: 0
G19: 0
A20: Sum | G20: =SUM(G5:G19) -> 0 | H20: =SUM(H4:H19) -> 0 | I20: =SUM(I7:I19) -> 0 | K20: =SUM(H20:J20) -> 0 | M20: =SUM(M4:M8) -> 0 | N20: =SUM(N4:N8) -> 0 | O20: =SUM(O4:O8) -> 0 | P20: =SUM(P4:P8) -> 0 | Q20: =SUM(Q5:Q19) -> 0

Sheet Underskuddsprosj
A1: Underskuddsprosjekter
D2: Tiltaks- | E2: Sted- | F2: Arts- | G2: Inntekter (artsklasse 3) | J2: Utgifter | N2: Netto | O2: Periodisering (utgift -, inntekt+) | S2: Avsatt
D3: kode | E3: kode | F3: kode | G3: Overført/ | H3: Øvrige | I3: Sum | J3: Lønn | K3: Drift | L3: Utstyr | M3: Sum | N3: avsatt | O3: 1. Tertial | P3: 2. Tertial | Q3: 3. Tertial | R3: Sum | S3: i fjor
G4: tildelinger | H4: =SUM(K44) -> 0 | I4: inntekter | J4: Artsklasse 5 | K4: Artsklasse 6 | L4: Artsklasse 4 | M4: utgifter | N4: over+/undersk -
A5: Underskudd | I5: =SUM(G5:H5) -> 0 | M5: =SUM(J5:L5) -> 0 | N5: =SUM(M5-I5) -> 0 | S5: 0
B6: UD-forsker Afrika: 30% DB-bortfall | I6: =SUM(G6:H6) -> 0 | J6: 93000 | M6: =SUM(J6:L6) -> 93000 | N6: =SUM(M6-I6) -> 93000 | S6: 200000
B7: UD-forsker Amerika 30% DB-bortfall | I7: 0 | J7: 93000 | M7: 93000 | N7: 93000 | R7: =SUM(O7:Q7) -> 0 | S7: 0
B8: Humrett-forsker: fam Nystuen. Lønnsunderskudd | I8: 0 | M8: 90000 | N8: 90000
I9: 0 | M9: 0 | N9: 0
B10: NFR: stipendiatprosjekter - lønnsunderskudd? | I10: 0 | M10: 0 | N10: 0
B11: NFR: postdoc Garcia-Godos. Lønnsunderskudd? | I11: 0 | J11: 0 | M11: 0 | N11: 0
I12: 0 | M12: 0 | N12: 0
A13: Overskudd | I13: 0 | M13: 0 | N13: 0
B14: Lovdata: Avklare! | I14: 0 | M14: 0 | N14: 0
B15: BFD: Avklare! | I15: 0 | M15: 0 | N15: 0
I16: 0 | M16: 0 | N16: 0
I17: 0 | M17: 0 | N17: 0 | S17: 8200
I18: 0 | M18: 0 | N18: 0 | S18: 0
A19: Sum | G19: =SUM(G5:G18) -> 0 | H19: =SUM(H5:H18) -> 0 | I19: =SUM(I5:I18) -> 0 | J19: =SUM(J4:J18) -> 186000 | K19: =SUM(K7:K18) -> 0 | L19: =SUM(L5:L18) -> 0 | M19: =SUM(M5:M18) -> 276000 | N19: =SUM(N5:N18) -> 276000 | O19: =SUM(O4:O7) -> 0 | P19: =SUM(P4:P7) -> 0 | Q19: =SUM(Q4:Q7) -> 0 | R19: =SUM(R4:R7) -> 0 | S19: =SUM(S5:S18) -> 208200

Sheet Mastergrad
A1: Mastergrad | C1: Norsk senter for menneskerettigheter
D4: Tiltaks- | E4: Sted- | F4: Arts- | G4: Inntekter (artsklasse 3) | J4: Utgifter | N4: Netto | O4: Periodisering (utgift -, inntekt+) | S4: Avsatt
D5: kode | E5: kode | F5: kode | G5: Overført/ | H5: Øvrige | I5: Sum | J5: Lønn | K5: Drift | L5: Utstyr | M5: Sum | N5: avsatt | O5: 1. Tertial | P5: 2. Tertial | Q5: 3. Tertial | R5: Sum | S5: i fjor
G6: tildelinger | H6: =SUM(K38) -> 0 | I6: inntekter | J6: Artsklasse 5 | K6: Artsklasse 6 | L6: Artsklasse 4 | M6: utgifter | N6: over+/undersk -
B7: Mastergradundervisning | D7: 612000 | K7: 70000 | M7: =SUM(J7:L7) -> 70000 | S7: 0
B8: Mastergrad drift | D8: 612000 | M8: 0
R9: =SUM(O9:Q9) -> 0 | S9: 0
A13: Sum undervisning høyere grad | J13: =SUM(J7:J12) -> 0 | K13: =SUM(K7:K12) -> 70000 | L13: =SUM(L7:L12) -> 0 | M13: =SUM(J13:L13) -> 70000 | N13: =SUM(N7:N12) -> 0 | O13: =SUM(O6:O10) -> 0 | P13: =SUM(P6:P10) -> 0 | Q13: =SUM(Q6:Q10) -> 0 | R13: =SUM(R6:R10) -> 0 | S13: =SUM(S7:S12) -> 0

Sheet 840000_info
A1: Informasjonsleder: Info generelt og MR-årbok
B2: Info | C2: Årbok
A3: Årsrapport engelsk | B3: 35000
A4: Årsrapport norsk | B4: 35000
A5: Årbok | C5: 130000
A6: Korrektur, alle trykksaker | B6: 15000 | C6: 15000
A7: Foto, omslag årbok | C7: 5000
A8: Andre trykk/reproutgifter | B8: 20000
A9: Andre fotoutgifter/fotograf | B9: 10000
A10: Lansering årbok | C10: 10000
A11: Boklunsjer og annen representasjon | B11: 10000
A12: Hotell/reise/diett | B12: 15000
A13: Innleid møteledelse til seminarer o.l. (spes. årboklans.) | B13: 0 | C13: 8000
A14: NY avtale med InterMedium om nyhetsfeed til web | B14: 15000
A15: Forlengelse av avtale med NTB/prm | B15: 20000
A16: Sum | B16: =SUM(B3:B15) -> 175000 | C16: =SUM(C3:C15) -> 168000
A17: Totalt | D17: =SUM(B16:C16) -> 343000

Sheet M&R
A1: Nordic Journal for Human Rights (tidl. M&R)
A6: Inntekt NOS/NOP
A7: Kostnad drift
A8: Kostnad lønn redaktør
A9: Kostnad lønn red.sekretær
